[Event "*** Titled Tuesday 3|2 Blitz"]
[Site "Chess.com"]
[Date "2017.06.06"]
[Round "7"]
[White "TrickyTrapChess"]
[Black "robbykevlishvili"]
[Result "1-0"]
[WhiteElo "2283"]
[BlackElo "2112"]
[TimeControl "180+2"]
[EndTime "15:18:58 PDT"]
[Termination "TrickyTrapChess won by checkmate"]

1. c4 {[%clk 0:03:02]} 1... c6 {[%clk 0:02:59]} 2. d4 {[%clk 0:03:01.6]} 2... d5
{[%clk 0:02:59.9]} 3. cxd5 {[%clk 0:03:00.9]} 3... cxd5 {[%clk 0:02:59.9]} 4.
Nc3 {[%clk 0:03:02.3]} 4... Nf6 {[%clk 0:03:00.4]} 5. Nf3 {[%clk 0:03:01.6]}
5... Nc6 {[%clk 0:03:01.1]} 6. Bf4 {[%clk 0:03:00.2]} 6... Nh5 {[%clk
0:03:02.1]} 7. Bd2 {[%clk 0:02:55.3]} 7... e6 {[%clk 0:02:59.2]} 8. e3 {[%clk
0:02:53.7]} 8... Bd6 {[%clk 0:02:57.2]} 9. Bd3 {[%clk 0:02:51.7]} 9... Nf6
{[%clk 0:02:57]} 10. O-O {[%clk 0:02:48.5]} 10... O-O {[%clk 0:02:56.3]} 11. Re1
{[%clk 0:02:45.7]} 11... e5 {[%clk 0:02:52.1]} 12. dxe5 {[%clk 0:02:42]} 12...
Nxe5 {[%clk 0:02:54]} 13. Nxe5 {[%clk 0:02:39.2]} 13... Bxe5 {[%clk 0:02:55.9]}
14. Rc1 {[%clk 0:02:28.1]} 14... Bxh2+ {[%clk 0:02:36.4]} 15. Kxh2 {[%clk
0:02:25]} 15... Ng4+ {[%clk 0:02:36.9]} 16. Kg3 {[%clk 0:02:23.2]} 16... Ne5
{[%clk 0:02:32.8]} 17. Bxh7+ {[%clk 0:02:19.6]} 17... Kxh7 {[%clk 0:02:25.2]}
18. Qh5+ {[%clk 0:02:21]} 18... Kg8 {[%clk 0:02:26]} 19. Qxe5 {[%clk 0:02:19.6]}
19... Re8 {[%clk 0:02:26]} 20. Qf4 {[%clk 0:02:16.4]} 20... Re6 {[%clk
0:02:26.3]} 21. f3 {[%clk 0:02:14.6]} 21... Rf6 {[%clk 0:02:25.3]} 22. Qd4
{[%clk 0:02:13.4]} 22... Rg6+ {[%clk 0:02:23.7]} 23. Kf2 {[%clk 0:02:12.6]}
23... Qg5 {[%clk 0:02:24.2]} 24. Rg1 {[%clk 0:02:09.4]} 24... Qg3+ {[%clk
0:02:24.8]} 25. Ke2 {[%clk 0:02:08.8]} 25... b6 {[%clk 0:02:04.7]} 26. Nxd5
{[%clk 0:02:04.5]} 26... Ba6+ {[%clk 0:01:52.9]} 27. Kd1 {[%clk 0:02:04.6]}
27... Re8 {[%clk 0:01:52.7]} 28. Ne7+ {[%clk 0:01:55.3]} 28... Rxe7 {[%clk
0:01:49.2]} 29. Qd8+ {[%clk 0:01:55.3]} 29... Kh7 {[%clk 0:01:48.2]} 30. Rh1+
{[%clk 0:01:49]} 30... Rh6 {[%clk 0:01:45]} 31. Rxh6+ {[%clk 0:01:48.7]} 31...
Kxh6 {[%clk 0:01:45.6]} 32. Qxe7 {[%clk 0:01:49.1]} 32... Qf2 {[%clk 0:01:40.2]}
33. Kc2 {[%clk 0:01:35.7]} 33... Qe2 {[%clk 0:01:35.3]} 34. e4+ {[%clk
0:01:26.1]} 34... Kg6 {[%clk 0:01:21.6]} 35. Qg5+ {[%clk 0:01:23.5]} 35... Kh7
{[%clk 0:01:22.3]} 36. Rh1+ {[%clk 0:01:23.8]} 36... Kg8 {[%clk 0:01:22.9]} 37.
Qd8# {[%clk 0:01:25.2]} 1-0

[Event "*** Titled Tuesday 3|2 Blitz"]
[Site "Chess.com"]
[Date "2017.06.06"]
[Round "7"]
[White "jcibarra"]
[Black "Quiet_Desperation"]
[Result "1-0"]
[WhiteElo "2641"]
[BlackElo "1981"]
[TimeControl "180+2"]
[EndTime "15:19:12 PDT"]
[Termination "jcibarra won by resignation"]

1. e4 {[%clk 0:02:53.7]} 1... Nc6 {[%clk 0:02:54.3]} 2. Nf3 {[%clk 0:02:53.8]}
2... d6 {[%clk 0:02:55.5]} 3. d4 {[%clk 0:02:54.6]} 3... Nf6 {[%clk 0:02:56.8]}
4. Nc3 {[%clk 0:02:55.8]} 4... d5 {[%clk 0:02:58.1]} 5. e5 {[%clk 0:02:53.9]}
5... Ne4 {[%clk 0:02:59.5]} 6. Bd3 {[%clk 0:02:52.5]} 6... Bf5 {[%clk
0:03:00.1]} 7. O-O {[%clk 0:02:45.2]} 7... e6 {[%clk 0:02:59.5]} 8. Ne2 {[%clk
0:02:44.4]} 8... Be7 {[%clk 0:02:59.7]} 9. Ne1 {[%clk 0:02:41.5]} 9... h6 {[%clk
0:02:59.2]} 10. c3 {[%clk 0:02:38.3]} 10... Qd7 {[%clk 0:02:52.8]} 11. f3 {[%clk
0:02:34.3]} 11... Ng5 {[%clk 0:02:53.9]} 12. Ng3 {[%clk 0:02:35.8]} 12... O-O-O
{[%clk 0:02:53.3]} 13. Nxf5 {[%clk 0:02:30.4]} 13... exf5 {[%clk 0:02:53]} 14.
b4 {[%clk 0:02:32.3]} 14... Rdg8 {[%clk 0:02:48.4]} 15. Qc2 {[%clk 0:02:31.6]}
15... g6 {[%clk 0:02:48.1]} 16. a4 {[%clk 0:02:32]} 16... Kb8 {[%clk 0:02:48.7]}
17. a5 {[%clk 0:02:32]} 17... Nd8 {[%clk 0:02:49.8]} 18. b5 {[%clk 0:02:32.2]}
18... c5 {[%clk 0:02:49.1]} 19. bxc6 {[%clk 0:02:30.2]} 19... Nxc6 {[%clk
0:02:48.9]} 20. Qb3 {[%clk 0:02:26.4]} 20... Ka8 {[%clk 0:02:34]} 21. Nc2 {[%clk
0:02:26]} 21... h5 {[%clk 0:02:25.3]} 22. Bd2 {[%clk 0:02:07.7]} 22... h4 {[%clk
0:02:25.5]} 23. h3 {[%clk 0:02:02.8]} 23... Ne6 {[%clk 0:02:15.2]} 24. Rfb1
{[%clk 0:01:58.5]} 24... Ned8 {[%clk 0:01:43.1]} 25. Ne3 {[%clk 0:01:49.1]}
25... Bg5 {[%clk 0:01:41]} 26. Nxd5 {[%clk 0:01:36.7]} 26... Bxd2 {[%clk
0:01:41.7]} 27. Nb6+ {[%clk 0:01:38]} 27... axb6 {[%clk 0:01:40.4]} 28. axb6+
{[%clk 0:01:39.9]} 28... Kb8 {[%clk 0:01:40.4]} 29. Qa2 {[%clk 0:01:40]} 29...
Kc8 {[%clk 0:01:41.5]} 30. Qxd2 {[%clk 0:01:35.3]} 30... Nb8 {[%clk 0:01:41.9]}
31. Rb5 {[%clk 0:01:20.2]} 31... g5 {[%clk 0:01:23.6]} 32. Rc5+ {[%clk
0:01:18.7]} 32... Ndc6 {[%clk 0:01:24]} 33. d5 {[%clk 0:01:18.1]} 33... Rh6
{[%clk 0:01:25.2]} 34. Ra8 {[%clk 0:01:15.3]} 34... Qe7 {[%clk 0:01:22.6]} 35.
Bxf5+ {[%clk 0:01:12.9]} 35... Kd8 {[%clk 0:01:22.5]} 36. dxc6+ {[%clk
0:01:13.1]} 1-0

[Event "*** Titled Tuesday 3|2 Blitz"]
[Site "Chess.com"]
[Date "2017.06.06"]
[Round "7"]
[White "ViIIagra"]
[Black "1lec"]
[Result "1-0"]
[WhiteElo "2592"]
[BlackElo "2045"]
[TimeControl "180+2"]
[EndTime "15:19:28 PDT"]
[Termination "ViIIagra won by resignation"]

1. d4 {[%clk 0:03:02]} 1... Nf6 {[%clk 0:02:58.8]} 2. c4 {[%clk 0:03:03.2]} 2...
g6 {[%clk 0:03:00.1]} 3. Nc3 {[%clk 0:03:04.8]} 3... d5 {[%clk 0:03:01.8]} 4.
cxd5 {[%clk 0:03:04.3]} 4... Nxd5 {[%clk 0:03:03.8]} 5. e4 {[%clk 0:03:05.7]}
5... Nxc3 {[%clk 0:03:05.2]} 6. bxc3 {[%clk 0:03:07.6]} 6... Bg7 {[%clk
0:03:06.7]} 7. Nf3 {[%clk 0:03:09.1]} 7... c5 {[%clk 0:03:08.3]} 8. Be3 {[%clk
0:03:10.5]} 8... O-O {[%clk 0:03:02.5]} 9. Be2 {[%clk 0:03:11]} 9... Qa5 {[%clk
0:02:58.9]} 10. O-O {[%clk 0:03:09.8]} 10... Rd8 {[%clk 0:02:24.3]} 11. Qb3
{[%clk 0:03:01.2]} 11... b6 {[%clk 0:02:00.7]} 12. Rfd1 {[%clk 0:02:59.3]} 12...
cxd4 {[%clk 0:01:18.2]} 13. cxd4 {[%clk 0:02:58]} 13... Ba6 {[%clk 0:01:19]} 14.
Bd2 {[%clk 0:02:29.2]} 14... Qh5 {[%clk 0:01:17]} 15. Ng5 {[%clk 0:02:01.7]}
15... Qxe2 {[%clk 0:00:46.2]} 16. Qxf7+ {[%clk 0:02:01.6]} 16... Kh8 {[%clk
0:00:46.7]} 17. Ne6 {[%clk 0:01:56.4]} 17... Rg8 {[%clk 0:00:43.8]} 18. Nxg7
{[%clk 0:01:49.3]} 18... Rxg7 {[%clk 0:00:44.3]} 19. Qf8+ {[%clk 0:01:50.3]}
19... Rg8 {[%clk 0:00:44.9]} 20. Qxe7 {[%clk 0:01:51.9]} 20... Qc4 {[%clk
0:00:17.4]} 21. Bh6 {[%clk 0:01:33.4]} 21... Nd7 {[%clk 0:00:04.9]} 22. Qxd7
{[%clk 0:01:27.7]} 22... Rad8 {[%clk 0:00:05.7]} 23. Bg7+ {[%clk 0:01:28.8]}
23... Rxg7 {[%clk 0:00:03.5]} 24. Qxd8+ {[%clk 0:01:30.7]} 24... Rg8 {[%clk
0:00:05.1]} 25. Qf6+ {[%clk 0:01:32]} 25... Rg7 {[%clk 0:00:06.1]} 26. d5 {[%clk
0:01:33.6]} 26... Qxe4 {[%clk 0:00:05.2]} 27. d6 {[%clk 0:01:34.7]} 1-0

[Event "*** Titled Tuesday 3|2 Blitz"]
[Site "Chess.com"]
[Date "2017.06.06"]
[Round "7"]
[White "Colombiano07"]
[Black "jeaston1"]
[Result "1-0"]
[WhiteElo "2292"]
[BlackElo "2150"]
[TimeControl "180+2"]
[EndTime "15:19:45 PDT"]
[Termination "Colombiano07 won on time"]

1. e4 {[%clk 0:03:02]} 1... c5 {[%clk 0:02:48.3]} 2. Nf3 {[%clk 0:03:02.5]} 2...
Nc6 {[%clk 0:02:46.3]} 3. d4 {[%clk 0:03:02.4]} 3... cxd4 {[%clk 0:02:47.9]} 4.
Nxd4 {[%clk 0:03:04.3]} 4... Nf6 {[%clk 0:02:49.2]} 5. Nc3 {[%clk 0:03:03.7]}
5... e5 {[%clk 0:02:50.2]} 6. Ndb5 {[%clk 0:03:04.1]} 6... d6 {[%clk 0:02:51.5]}
7. Bg5 {[%clk 0:03:04]} 7... a6 {[%clk 0:02:52.9]} 8. Na3 {[%clk 0:03:03.8]}
8... b5 {[%clk 0:02:51.4]} 9. Nd5 {[%clk 0:03:05.1]} 9... Be7 {[%clk 0:02:51.4]}
10. Bxf6 {[%clk 0:03:05.8]} 10... Bxf6 {[%clk 0:02:53.3]} 11. c4 {[%clk
0:03:03.8]} 11... b4 {[%clk 0:02:51.7]} 12. Nc2 {[%clk 0:03:04.1]} 12... a5
{[%clk 0:02:52.5]} 13. Be2 {[%clk 0:03:01.2]} 13... O-O {[%clk 0:02:51.6]} 14.
O-O {[%clk 0:03:01.5]} 14... Be6 {[%clk 0:02:51.5]} 15. Bg4 {[%clk 0:02:58.1]}
15... Bg5 {[%clk 0:02:44.6]} 16. g3 {[%clk 0:02:50.7]} 16... Bh6 {[%clk
0:02:40.7]} 17. Kg2 {[%clk 0:02:41.8]} 17... Qg5 {[%clk 0:02:34.8]} 18. h3
{[%clk 0:02:41.8]} 18... Kh8 {[%clk 0:02:09.2]} 19. Bxe6 {[%clk 0:02:37.2]}
19... fxe6 {[%clk 0:02:08]} 20. Nc7 {[%clk 0:02:38.2]} 20... Qe7 {[%clk
0:01:23.8]} 21. Nxa8 {[%clk 0:02:37.9]} 21... Rxa8 {[%clk 0:01:25.7]} 22. Qd3
{[%clk 0:02:38.7]} 22... Rd8 {[%clk 0:01:24.7]} 23. a3 {[%clk 0:02:32.9]} 23...
b3 {[%clk 0:00:39.3]} 24. Qxb3 {[%clk 0:02:28.1]} 24... Rb8 {[%clk 0:00:39.1]}
25. Qc3 {[%clk 0:02:26.2]} 25... Qb7 {[%clk 0:00:38.2]} 26. b4 {[%clk
0:02:15.9]} 26... axb4 {[%clk 0:00:37.4]} 27. axb4 {[%clk 0:02:09.6]} 27... g6
{[%clk 0:00:36.1]} 28. b5 {[%clk 0:02:09.3]} 28... Nd4 {[%clk 0:00:33.4]} 29.
Nxd4 {[%clk 0:02:07]} 29... exd4 {[%clk 0:00:33.4]} 30. Qd3 {[%clk 0:02:01.2]}
30... Bg7 {[%clk 0:00:33.6]} 31. Ra6 {[%clk 0:01:58.7]} 31... d5 {[%clk
0:00:32]} 32. exd5 {[%clk 0:01:59.2]} 32... exd5 {[%clk 0:00:31.8]} 33. c5
{[%clk 0:01:59.9]} 33... Be5 {[%clk 0:00:11.6]} 34. Re1 {[%clk 0:01:50.3]} 1-0

[Event "*** Titled Tuesday 3|2 Blitz"]
[Site "Chess.com"]
[Date "2017.06.06"]
[Round "7"]
[White "Hikaru"]
[Black "tigra"]
[Result "1-0"]
[WhiteElo "2918"]
[BlackElo "2641"]
[TimeControl "180+2"]
[EndTime "15:19:46 PDT"]
[Termination "Hikaru won by resignation"]

1. d4 {[%clk 0:03:02]} 1... Nf6 {[%clk 0:02:58.7]} 2. c4 {[%clk 0:03:01.3]} 2...
g6 {[%clk 0:02:59.9]} 3. Nf3 {[%clk 0:03:01.9]} 3... Bg7 {[%clk 0:03:00.2]} 4.
e3 {[%clk 0:03:02.7]} 4... O-O {[%clk 0:03:00.6]} 5. Be2 {[%clk 0:03:02.3]} 5...
d6 {[%clk 0:02:59.7]} 6. O-O {[%clk 0:03:01.8]} 6... Qe8 {[%clk 0:02:58.6]} 7.
Nc3 {[%clk 0:02:59.6]} 7... e5 {[%clk 0:02:58.2]} 8. b4 {[%clk 0:03:00]} 8...
exd4 {[%clk 0:02:57]} 9. exd4 {[%clk 0:02:59.9]} 9... a5 {[%clk 0:02:24.1]} 10.
b5 {[%clk 0:02:58.6]} 10... c5 {[%clk 0:02:16.5]} 11. bxc6 {[%clk 0:02:55.2]}
11... Nxc6 {[%clk 0:02:16.3]} 12. Nb5 {[%clk 0:02:52.6]} 12... Qd8 {[%clk
0:02:04.3]} 13. Bf4 {[%clk 0:02:52.8]} 13... Ne4 {[%clk 0:02:03.8]} 14. Bd3
{[%clk 0:02:50.7]} 14... f5 {[%clk 0:02:04.2]} 15. Re1 {[%clk 0:02:51]} 15... h6
{[%clk 0:01:40.6]} 16. Bxe4 {[%clk 0:02:37.9]} 16... fxe4 {[%clk 0:01:41.3]} 17.
Rxe4 {[%clk 0:02:39.8]} 17... d5 {[%clk 0:01:34.6]} 18. cxd5 {[%clk 0:02:36.1]}
18... Qxd5 {[%clk 0:01:35.3]} 19. Nc3 {[%clk 0:02:36.1]} 19... Qf7 {[%clk
0:01:22.9]} 20. Bd6 {[%clk 0:02:20]} 20... Rd8 {[%clk 0:01:22.3]} 21. Ne5 {[%clk
0:02:15.9]} 21... Qf5 {[%clk 0:01:01.5]} 22. Nxc6 {[%clk 0:02:06]} 22... bxc6
{[%clk 0:01:01.8]} 23. Be5 {[%clk 0:02:05.4]} 23... Bf8 {[%clk 0:00:38.8]} 24.
Rf4 {[%clk 0:02:01.6]} 24... Qe6 {[%clk 0:00:38.8]} 25. Ne4 {[%clk 0:02:01.9]}
25... Bg7 {[%clk 0:00:32.8]} 26. Nf6+ {[%clk 0:01:52.2]} 26... Kh8 {[%clk
0:00:33.5]} 27. Qc2 {[%clk 0:01:52.5]} 27... Qf7 {[%clk 0:00:17.4]} 28. Nh5
{[%clk 0:01:50.5]} 28... Bf5 {[%clk 0:00:13.7]} 29. Nxg7 {[%clk 0:01:50.3]}
29... Rxd4 {[%clk 0:00:06.2]} 30. Nxf5+ {[%clk 0:01:46]} 1-0

[Event "*** Titled Tuesday 3|2 Blitz"]
[Site "Chess.com"]
[Date "2017.06.06"]
[Round "7"]
[White "heartofatiger"]
[Black "TomsKantans"]
[Result "1-0"]
[WhiteElo "2394"]
[BlackElo "2460"]
[TimeControl "180+2"]
[EndTime "15:20:26 PDT"]
[Termination "heartofatiger won on time"]

1. d4 {[%clk 0:03:02]} 1... Nf6 {[%clk 0:02:57.9]} 2. Nf3 {[%clk 0:03:01.5]}
2... g6 {[%clk 0:02:58.6]} 3. c4 {[%clk 0:03:01.7]} 3... Bg7 {[%clk 0:02:59.3]}
4. Nc3 {[%clk 0:03:03.2]} 4... d5 {[%clk 0:03:00.5]} 5. cxd5 {[%clk 0:03:00.7]}
5... Nxd5 {[%clk 0:03:02.4]} 6. e4 {[%clk 0:03:01.2]} 6... Nxc3 {[%clk
0:03:03.7]} 7. bxc3 {[%clk 0:03:02.4]} 7... c5 {[%clk 0:03:05.6]} 8. Be3 {[%clk
0:03:03.7]} 8... Qa5 {[%clk 0:03:06.3]} 9. Qd2 {[%clk 0:02:56.1]} 9... O-O
{[%clk 0:03:07.3]} 10. Rb1 {[%clk 0:02:56.6]} 10... Rd8 {[%clk 0:03:01.1]} 11.
Rb5 {[%clk 0:02:45.5]} 11... Qa3 {[%clk 0:02:51.7]} 12. Bc4 {[%clk 0:02:25.6]}
12... a6 {[%clk 0:02:38.6]} 13. Rb3 {[%clk 0:02:19.8]} 13... Qa4 {[%clk
0:02:31.6]} 14. Bd5 {[%clk 0:02:16.2]} 14... Nc6 {[%clk 0:02:32.4]} 15. O-O
{[%clk 0:02:09.8]} 15... e6 {[%clk 0:02:15]} 16. Bxc6 {[%clk 0:02:09.2]} 16...
Qxc6 {[%clk 0:02:16.9]} 17. Re1 {[%clk 0:01:49.8]} 17... b5 {[%clk 0:02:09.5]}
18. Bg5 {[%clk 0:01:48.9]} 18... Rd7 {[%clk 0:02:09.4]} 19. Qf4 {[%clk
0:01:48.1]} 19... cxd4 {[%clk 0:02:02.7]} 20. cxd4 {[%clk 0:01:42.5]} 20... Bb7
{[%clk 0:02:03.4]} 21. Ne5 {[%clk 0:01:37.4]} 21... Bxe5 {[%clk 0:01:59]} 22.
dxe5 {[%clk 0:01:34.3]} 22... Qc5 {[%clk 0:01:28.2]} 23. Qf6 {[%clk 0:01:16.3]}
23... Qf8 {[%clk 0:01:23.2]} 24. Rh3 {[%clk 0:01:10.5]} 24... Qg7 {[%clk
0:01:11.6]} 25. Qf4 {[%clk 0:01:06.9]} 25... Rd4 {[%clk 0:00:05]} 26. Bf6 {[%clk
0:01:01.4]} 1-0

[Event "*** Titled Tuesday 3|2 Blitz"]
[Site "Chess.com"]
[Date "2017.06.06"]
[Round "7"]
[White "PaulfromSPb"]
[Black "DanielNaroditsky"]
[Result "0-1"]
[WhiteElo "2586"]
[BlackElo "2754"]
[TimeControl "180+2"]
[EndTime "15:20:44 PDT"]
[Termination "DanielNaroditsky won by resignation"]

1. e4 {[%clk 0:02:58.5]} 1... e5 {[%clk 0:03:00.3]} 2. Nf3 {[%clk 0:02:59.3]}
2... Nc6 {[%clk 0:03:01.9]} 3. Bc4 {[%clk 0:02:57.7]} 3... Bc5 {[%clk
0:03:02.3]} 4. O-O {[%clk 0:02:58]} 4... Nf6 {[%clk 0:03:03.5]} 5. d3 {[%clk
0:02:59]} 5... a6 {[%clk 0:03:04]} 6. c3 {[%clk 0:02:56.3]} 6... Ba7 {[%clk
0:03:05.1]} 7. Bb3 {[%clk 0:02:57.3]} 7... d6 {[%clk 0:03:04.7]} 8. h3 {[%clk
0:02:57.9]} 8... h6 {[%clk 0:03:05.9]} 9. Re1 {[%clk 0:02:57.9]} 9... g5 {[%clk
0:03:06.5]} 10. Nh2 {[%clk 0:02:51.6]} 10... Rg8 {[%clk 0:02:55.1]} 11. Be3
{[%clk 0:02:47.5]} 11... g4 {[%clk 0:02:55.4]} 12. Bxa7 {[%clk 0:02:18.6]} 12...
gxh3 {[%clk 0:02:56.3]} 13. g3 {[%clk 0:02:19.6]} 13... Rxa7 {[%clk 0:02:57.2]}
14. Nd2 {[%clk 0:02:17.6]} 14... h5 {[%clk 0:02:57.9]} 15. Ndf3 {[%clk
0:02:16.5]} 15... Ng4 {[%clk 0:02:56.8]} 16. Qd2 {[%clk 0:02:10.3]} 16... Qf6
{[%clk 0:02:57.5]} 17. Nh4 {[%clk 0:02:03.4]} 17... Ne7 {[%clk 0:02:03.5]} 18.
f3 {[%clk 0:01:44.3]} 18... Nh6 {[%clk 0:01:31.5]} 19. Kf2 {[%clk 0:01:45.1]}
19... Qxh4 {[%clk 0:01:27.8]} 20. gxh4 {[%clk 0:01:42.4]} 20... Rg2+ {[%clk
0:01:28.5]} 21. Ke3 {[%clk 0:01:37.1]} 21... Nhf5+ {[%clk 0:01:29.2]} 22. exf5
{[%clk 0:01:34.9]} 22... Nxf5+ {[%clk 0:01:31.1]} 23. Ke4 {[%clk 0:01:36.4]}
23... Rxd2 {[%clk 0:01:31.5]} 24. Nf1 {[%clk 0:01:32.2]} 24... Rxb2 {[%clk
0:01:30]} 25. f4 {[%clk 0:01:33]} 25... h2 {[%clk 0:01:28.5]} 26. Ne3 {[%clk
0:01:24.8]} 26... Nxh4 {[%clk 0:01:06.5]} 27. fxe5 {[%clk 0:01:23.3]} 27... dxe5
{[%clk 0:01:08.4]} 28. Kxe5 {[%clk 0:01:23.5]} 28... Nf3+ {[%clk 0:01:09.1]} 29.
Kf6 {[%clk 0:01:23]} 29... Nxe1 {[%clk 0:01:08.1]} 30. Rxe1 {[%clk 0:01:23.3]}
30... Rf2+ {[%clk 0:01:09.3]} 31. Kg7 {[%clk 0:01:18]} 31... Be6 {[%clk
0:01:07.7]} 32. d4 {[%clk 0:01:09.9]} 32... Re2 {[%clk 0:01:04.2]} 33. Rxe2
{[%clk 0:01:05.9]} 33... h1=Q {[%clk 0:01:04.5]} 34. d5 {[%clk 0:01:07.3]} 34...
Qg1+ {[%clk 0:01:05.5]} 35. Kh8 {[%clk 0:01:05.4]} 35... Kf8 {[%clk 0:00:59]}
36. Ng2 {[%clk 0:00:58.3]} 36... Qf1 {[%clk 0:00:59.9]} 0-1

[Event "*** Titled Tuesday 3|2 Blitz"]
[Site "Chess.com"]
[Date "2017.06.06"]
[Round "7"]
[White "TheLancer"]
[Black "anon102030"]
[Result "0-1"]
[WhiteElo "2420"]
[BlackElo "2581"]
[TimeControl "180+2"]
[EndTime "15:20:49 PDT"]
[Termination "anon102030 won by resignation"]

1. e4 {[%clk 0:03:02]} 1... e5 {[%clk 0:03:01.5]} 2. Nf3 {[%clk 0:03:03.6]} 2...
Nc6 {[%clk 0:03:02.7]} 3. d4 {[%clk 0:03:05.2]} 3... exd4 {[%clk 0:03:03]} 4.
Bc4 {[%clk 0:03:06.9]} 4... Nf6 {[%clk 0:03:03.4]} 5. e5 {[%clk 0:03:08.3]} 5...
d5 {[%clk 0:03:04.3]} 6. Bb5 {[%clk 0:03:10]} 6... Ne4 {[%clk 0:03:05.4]} 7.
Nxd4 {[%clk 0:03:11.6]} 7... Bd7 {[%clk 0:03:06.2]} 8. Bxc6 {[%clk 0:03:13]}
8... bxc6 {[%clk 0:03:08.1]} 9. O-O {[%clk 0:03:14.2]} 9... Be7 {[%clk 0:03:08]}
10. f3 {[%clk 0:03:15.5]} 10... Nc5 {[%clk 0:03:08.6]} 11. Be3 {[%clk
0:03:12.5]} 11... O-O {[%clk 0:03:07.6]} 12. f4 {[%clk 0:03:12.4]} 12... f6
{[%clk 0:03:03.8]} 13. Nd2 {[%clk 0:02:53.2]} 13... Rb8 {[%clk 0:02:41.6]} 14.
N4b3 {[%clk 0:02:50.2]} 14... Na4 {[%clk 0:02:22.9]} 15. Rb1 {[%clk 0:02:29.5]}
15... fxe5 {[%clk 0:02:07.9]} 16. fxe5 {[%clk 0:02:30.3]} 16... c5 {[%clk
0:02:09.1]} 17. Rxf8+ {[%clk 0:02:13.4]} 17... Bxf8 {[%clk 0:02:06.6]} 18. c4
{[%clk 0:02:06.3]} 18... d4 {[%clk 0:02:03]} 19. Bf2 {[%clk 0:02:06.3]} 19...
Qg5 {[%clk 0:01:47.9]} 20. Nf3 {[%clk 0:02:02.5]} 20... Qh5 {[%clk 0:01:45.1]}
21. h3 {[%clk 0:01:57.3]} 21... Be7 {[%clk 0:01:22.1]} 22. Qd2 {[%clk
0:01:54.6]} 22... Bxh3 {[%clk 0:01:19.9]} 23. Qa5 {[%clk 0:01:26.3]} 23... Qg6
{[%clk 0:01:13.1]} 24. Ne1 {[%clk 0:01:05.6]} 24... Qxb1 {[%clk 0:01:07.1]} 25.
gxh3 {[%clk 0:01:06.6]} 25... Nxb2 {[%clk 0:00:56.2]} 26. Qxc7 {[%clk
0:01:07.7]} 26... Qg6+ {[%clk 0:00:56]} 27. Kf1 {[%clk 0:00:57.5]} 27... Re8
{[%clk 0:00:52.8]} 28. Nxc5 {[%clk 0:00:49.1]} 28... d3 {[%clk 0:00:50]} 29. Nb3
{[%clk 0:00:45.4]} 29... Qh5 {[%clk 0:00:41.9]} 30. Qd7 {[%clk 0:00:43.9]} 30...
Qe2+ {[%clk 0:00:34.4]} 31. Kg2 {[%clk 0:00:25.9]} 31... Rf8 {[%clk 0:00:36.3]}
32. Qd5+ {[%clk 0:00:26.8]} 32... Kh8 {[%clk 0:00:36]} 33. Nf3 {[%clk
0:00:28.1]} 33... Nd1 {[%clk 0:00:31.1]} 0-1

[Event "*** Titled Tuesday 3|2 Blitz"]
[Site "Chess.com"]
[Date "2017.06.06"]
[Round "7"]
[White "nurmiTV"]
[Black "andreimacovei2000"]
[Result "1/2-1/2"]
[WhiteElo "2456"]
[BlackElo "2383"]
[TimeControl "180+2"]
[EndTime "15:20:50 PDT"]
[Termination "Game drawn by agreement"]

1. c4 {[%clk 0:02:56.8]} 1... e5 {[%clk 0:03:00]} 2. Nc3 {[%clk 0:02:57.2]} 2...
Bb4 {[%clk 0:03:00]} 3. Nd5 {[%clk 0:02:57.5]} 3... Be7 {[%clk 0:02:59.5]} 4.
Nf3 {[%clk 0:02:57.1]} 4... d6 {[%clk 0:02:59.4]} 5. d4 {[%clk 0:02:56]} 5...
exd4 {[%clk 0:02:50.8]} 6. Nxd4 {[%clk 0:02:55.2]} 6... Nf6 {[%clk 0:02:50.3]}
7. Nxe7 {[%clk 0:02:54.4]} 7... Qxe7 {[%clk 0:02:50.8]} 8. g3 {[%clk 0:02:55.9]}
8... Nc6 {[%clk 0:02:47.1]} 9. Bg2 {[%clk 0:02:52.3]} 9... Bd7 {[%clk
0:02:47.3]} 10. O-O {[%clk 0:02:52.3]} 10... O-O {[%clk 0:02:41.8]} 11. Nb5
{[%clk 0:02:48.8]} 11... Rac8 {[%clk 0:02:40.2]} 12. b3 {[%clk 0:02:43.5]} 12...
a6 {[%clk 0:02:39.5]} 13. Nc3 {[%clk 0:02:43.2]} 13... Rfe8 {[%clk 0:02:36.9]}
14. Bb2 {[%clk 0:02:31.9]} 14... Qe5 {[%clk 0:02:37.6]} 15. Re1 {[%clk
0:02:18.3]} 15... Qh5 {[%clk 0:02:38.3]} 16. Nd5 {[%clk 0:02:07.3]} 16... Nxd5
{[%clk 0:02:38.6]} 17. Qxd5 {[%clk 0:02:04.1]} 17... Qxd5 {[%clk 0:02:32.1]} 18.
cxd5 {[%clk 0:01:47.7]} 18... Nb4 {[%clk 0:02:30]} 19. Rac1 {[%clk 0:01:44]}
19... Nxa2 {[%clk 0:02:29.3]} 20. Rc4 {[%clk 0:01:41.4]} 20... a5 {[%clk
0:02:26.8]} 21. Ba3 {[%clk 0:01:29.6]} 21... Bb5 {[%clk 0:02:20.2]} 22. Rc2
{[%clk 0:01:15.3]} 22... Nb4 {[%clk 0:02:21.3]} 23. Bxb4 {[%clk 0:01:15.5]}
23... axb4 {[%clk 0:02:23.2]} 24. Bh3 {[%clk 0:01:14.6]} 24... Rb8 {[%clk
0:02:12.1]} 25. Rxc7 {[%clk 0:00:54.7]} 25... Bxe2 {[%clk 0:02:11.9]} 26. Bd7
{[%clk 0:00:48.3]} 26... Re4 {[%clk 0:02:06.4]} 27. Bc8 {[%clk 0:00:40]} 27...
b6 {[%clk 0:02:03.8]} 28. Bf5 {[%clk 0:00:35.9]} 28... Re5 {[%clk 0:02:04.9]}
29. Bd7 {[%clk 0:00:34.2]} 29... Bf3 {[%clk 0:01:50.3]} 30. Rxe5 {[%clk
0:00:33.6]} 30... dxe5 {[%clk 0:01:52.2]} 31. Bc6 {[%clk 0:00:35.2]} 31... Rd8
{[%clk 0:01:48.1]} 32. d6 {[%clk 0:00:30.5]} 32... Bxc6 {[%clk 0:01:45.2]} 33.
Rxc6 {[%clk 0:00:32.4]} 33... f5 {[%clk 0:01:46.6]} 34. Rxb6 {[%clk 0:00:32.5]}
34... Kf7 {[%clk 0:01:48]} 35. Rxb4 {[%clk 0:00:27.1]} 35... Rxd6 {[%clk
0:01:48.3]} 36. Kf1 {[%clk 0:00:28.4]} 36... Kf6 {[%clk 0:01:48.1]} 37. h4
{[%clk 0:00:28]} 37... e4 {[%clk 0:01:47.2]} 38. Ke2 {[%clk 0:00:27.3]} 38...
Kg6 {[%clk 0:01:46]} 39. Rb7 {[%clk 0:00:26.8]} 39... Kh6 {[%clk 0:01:37.1]} 40.
b4 {[%clk 0:00:24.5]} 40... Ra6 {[%clk 0:01:36.8]} 41. b5 {[%clk 0:00:21.7]}
41... Ra2+ {[%clk 0:01:37.5]} 42. Ke3 {[%clk 0:00:23]} 42... Ra3+ {[%clk
0:01:38.1]} 43. Ke2 {[%clk 0:00:24.5]} 43... Ra2+ {[%clk 0:01:34.9]} 44. Kf1
{[%clk 0:00:24.8]} 44... Ra1+ {[%clk 0:01:34.7]} 45. Kg2 {[%clk 0:00:26]} 45...
Ra2 {[%clk 0:01:36]} 46. Re7 {[%clk 0:00:27.3]} 46... Rb2 {[%clk 0:01:34.6]} 47.
Re6+ {[%clk 0:00:26.8]} 47... g6 {[%clk 0:01:35.3]} 48. b6 {[%clk 0:00:28.7]}
48... e3 {[%clk 0:01:34.5]} 1/2-1/2